bitfinex-derivatives/quotes_BNBF0:USTF0_20260110
["timestamp","ask_amount","ask_price","bid_price","bid_amount"]
[1768023425033,0.19131812,909.62,908.78,0.71201469]
[1768023425234,2.74803267,910.82,908.79,0.71201469]
[1768023425432,0.19131496,910.31,908.8,0.71201469]
[1768023425738,0.19131496,910.31,908.81,0.71201469]
[1768023426038,0.19131496,910.31,908.82,0.71201469]
[1768023426237,0.19131496,910.31,908.83,0.71201469]
[1768023426439,0.19131496,910.31,908.84,0.71201469]
[1768023426738,0.19131496,910.31,908.85,0.71201469]
[1768023426938,0.19131496,910.31,908.86,0.71201469]
[1768023427138,0.19131496,910.31,908.8,1.885]
[1768023427438,0.19131496,910.31,908.81,0.70874216]
[1768023427635,0.19131496,910.31,908.82,0.70874216]
[1768023427833,0.19131496,910.31,908.83,0.70874216]
[1768023428138,0.19131496,910.31,908.84,0.70874216]
[1768023428334,0.19131496,910.31,908.85,0.70874216]
[1768023428538,0.19131496,910.31,908.86,0.70874216]
[1768023428735,0.19131496,910.31,908.87,0.70874216]
[1768023428936,0.19131496,910.31,908.88,0.70874216]
[1768023429139,0.19131496,910.31,908.89,0.70874216]
[1768023429340,0.19131496,910.31,908.9,0.70874216]
[1768023429539,0.19131496,910.31,908.91,0.70874216]
[1768023429742,0.19131496,910.31,908.92,0.70874216]
[1768023429940,0.19131496,910.31,908.93,0.70874216]
[1768023430140,0.19131496,910.31,908.94,0.70874216]
[1768023430440,0.19131496,910.31,908.8,1.885]
[1768023430642,0.19131496,910.31,908.81,0.70771194]
[1768023430840,0.19131496,910.31,908.82,0.70771194]
[1768023431040,0.19131496,910.31,908.83,0.70771194]
[1768023431340,0.19131496,910.31,908.84,0.70771194]
[1768023431539,0.19131496,910.31,908.85,0.70771194]
[1768023431742,0.19131496,910.31,908.86,0.70771194]
[1768023432035,0.19131496,910.31,908.87,0.70771194]
[1768023432239,0.19131496,910.31,908.88,0.70771194]
[1768023432440,0.19131496,910.31,908.89,0.70771194]
[1768023432743,0.19131496,910.31,908.9,0.70771194]
[1768023433037,0.19131496,910.31,908.91,0.70771194]
[1768023433240,0.19131496,910.31,908.8,1.885]
[1768023433538,0.19131496,910.31,908.81,0.70873998]
[1768023433742,0.19131496,910.31,908.82,0.70873998]
[1768023434034,0.19131496,910.31,908.83,0.70873998]
[1768023434239,0.19131496,910.31,908.84,0.70873998]
[1768023434439,0.19131496,910.31,908.85,0.70873998]
[1768023434639,0.19131496,910.31,908.86,0.70873998]
[1768023434835,0.19131496,910.31,908.87,0.70873998]
[1768023435039,0.19131496,910.31,908.88,0.70873998]
[1768023435239,0.19131496,910.31,908.89,0.70873998]
[1768023435439,0.19131496,910.31,908.9,0.70873998]
[1768023435639,0.19131496,910.31,908.91,0.70873998]
[1768023435939,0.19131496,910.31,908.8,1.885]
[1768023436139,0.19131496,910.31,908.81,0.70855995]
[1768023436438,0.19131496,910.31,908.82,0.70855995]
[1768023436639,0.19131496,910.31,908.83,0.70855995]
[1768023436838,0.19131496,910.31,908.84,0.70855995]
[1768023437039,0.19131496,910.31,908.85,0.70855995]
[1768023437236,0.19131496,910.31,908.86,0.70855995]
[1768023437440,0.19131496,910.31,908.87,0.70855995]
[1768023437640,0.19131496,910.31,908.88,0.70855995]
[1768023437835,0.19131496,910.31,908.89,0.70855995]
[1768023438138,0.19131496,910.31,908.9,0.70855995]
[1768023438342,0.19131496,910.31,908.8,1.885]
[1768023438539,0.19131496,910.31,908.81,0.70892393]
[1768023438739,0.19131496,910.31,908.82,0.70892393]
[1768023438939,0.19131496,910.31,908.83,0.70892393]
[1768023439143,0.19131496,910.31,908.84,0.70892393]
[1768023439340,0.19131496,910.31,908.85,0.70892393]
[1768023439539,0.19131496,910.31,908.86,0.70892393]
[1768023439847,0.19131496,910.31,908.87,0.70892393]
[1768023440043,0.19131496,910.31,908.88,0.70892393]
[1768023440244,0.19131496,910.31,908.89,0.70892393]
[1768023440442,0.19131496,910.31,908.8,1.885]
[1768023440641,0.19131496,910.31,908.81,0.70891707]
[1768023440842,0.19131496,910.31,908.82,0.70891707]
[1768023441143,0.19131496,910.31,908.83,0.70891707]
[1768023441342,0.19131496,910.31,908.8,1.885]
[1768023441544,0.19131496,910.31,908.81,0.7090621]
[1768023441742,0.19131496,910.31,908.8,1.885]
[1768023441946,0.19131496,910.31,908.81,0.70908228]
[1768023442242,0.19131496,910.31,908.82,0.7091613]
[1768023442441,0.19131496,910.31,908.8,1.885]
[1768023442740,0.19131496,910.31,908.81,0.70923909]
[1768023442945,0.19131496,910.31,908.82,0.70923909]
[1768023443143,0.19131496,910.31,908.8,1.885]
[1768023443343,0.19131496,910.31,908.81,0.70930656]
[1768023443541,0.19131496,910.31,908.82,0.70930656]
[1768023443745,0.19131496,910.31,908.8,1.885]
[1768023443945,0.19131496,910.31,908.81,0.70941095]
[1768023444142,0.19131496,910.31,908.82,0.70941095]
[1768023444345,0.19131496,910.31,908.83,0.70941095]
[1768023444645,0.19131496,910.31,908.8,1.885]
[1768023444844,0.19131496,910.31,908.81,0.70949859]
[1768023445045,0.19131496,910.31,908.82,0.70949859]
[1768023445245,0.19131496,910.31,908.83,0.70949859]
[1768023445446,0.19131496,910.31,908.8,1.885]
[1768023445646,0.19131496,910.31,908.81,0.70960629]
[1768023445846,0.19131496,910.31,908.82,0.70960629]
[1768023446045,0.19131496,910.31,908.83,0.70960629]
[1768023446245,0.19131496,910.31,908.84,0.70973639]
[1768023446443,0.19131496,910.31,908.8,1.885]
[1768023446646,0.19131496,910.31,908.81,0.70973652]
[1768023446848,0.19131496,910.31,908.82,0.70973652]
[1768023447048,0.19131496,910.31,908.83,0.70973652]
[1768023447248,0.19131496,910.31,908.84,0.70973652]
[1768023447449,0.19131496,910.31,908.85,0.70973652]
[1768023447650,0.19131496,910.31,908.8,1.885]
[1768023447850,0.19131496,910.31,908.81,0.70988992]
[1768023448050,0.19131496,910.31,908.82,0.70988992]
[1768023448249,0.19131496,910.31,908.83,0.70988992]
[1768023448448,0.19131496,910.31,908.84,0.70988992]
[1768023448651,0.19131496,910.31,908.85,0.70988992]
[1768023448851,0.19131496,910.31,908.86,0.70988992]
[1768023449051,0.19131496,910.31,908.8,1.885]
[1768023449348,0.19131496,910.31,908.81,0.71003979]
[1768023449550,0.19131496,910.31,908.82,0.71003979]
[1768023449849,0.19131496,910.31,908.83,0.71003979]
[1768023450046,0.19131496,910.31,908.84,0.71003979]
[1768023450247,0.19131496,910.31,908.85,0.71003979]
[1768023450448,0.19131496,910.31,908.86,0.71003979]
[1768023450649,0.19131496,910.31,908.87,0.71003979]
[1768023450852,0.19131496,910.31,908.88,0.71003979]
[1768023451053,0.19131496,910.31,908.8,1.885]
[1768023451351,0.19131496,910.31,908.81,0.71047811]
[1768023451548,0.19131496,910.31,908.82,0.71047811]
[1768023451749,0.19131496,910.31,908.83,0.71047811]
[1768023451952,0.19131496,910.31,908.84,0.71047811]
[1768023452154,0.19131496,910.31,908.85,0.71047811]
[1768023452453,0.19131496,910.31,908.86,0.71047811]
[1768023452654,0.19131496,910.31,908.87,0.71047811]
[1768023452953,0.19131496,910.31,908.88,0.71047811]
[1768023453153,0.19131496,910.31,908.89,0.71047811]
[1768023453453,0.19131496,910.31,908.9,0.71047811]
[1768023453650,0.19131496,910.31,908.91,0.71047811]
[1768023453951,0.19131496,910.31,908.92,0.71047811]
[1768023454153,0.19131496,910.31,908.93,0.71047811]
[1768023454453,0.19131496,910.31,908.94,0.71047811]
[1768023454648,0.19131496,910.31,908.95,0.71047811]
[1768023454850,0.19131496,910.31,908.96,0.71047811]
[1768023455054,0.19131496,910.31,908.97,0.71047811]
[1768023455253,0.19131496,910.31,908.98,0.71047811]
[1768023455453,0.19131496,910.31,908.99,0.71047811]
[1768023455647,0.19131496,910.31,908.8,1.885]
[1768023455648,0.19131496,910.31,909.0,0.71047811]
[1768023455854,0.19131496,910.31,909.01,0.71047811]
[1768023456148,0.19131496,910.31,909.02,0.71047811]
[1768023456351,0.19131496,910.31,909.03,0.71047811]
[1768023456550,0.19131496,910.31,909.04,0.71047811]
[1768023456752,0.19131496,910.31,908.8,1.885]
[1768023456954,0.19131496,910.31,908.81,0.71236095]
[1768023457148,0.19131496,910.31,908.82,0.71236095]
[1768023457351,0.19131496,910.31,908.83,0.71236095]
[1768023457554,0.19131496,910.31,908.84,0.71236095]
[1768023457752,0.19131496,910.31,908.85,0.71236095]
[1768023457956,0.19131496,910.31,908.86,0.71236095]
[1768023458156,0.19131496,910.31,908.87,0.71236095]
[1768023458356,0.19131496,910.31,908.88,0.71236095]
[1768023458656,0.19131496,910.31,908.89,0.71236095]
[1768023458855,0.19131496,910.31,908.9,0.71236095]
[1768023459152,0.19131496,910.31,908.91,0.71236095]
[1768023459356,0.19131496,910.31,908.92,0.71236095]
[1768023459556,0.19131496,910.31,908.93,0.71236095]
[1768023459757,0.19131496,910.31,908.8,1.885]
[1768023459758,0.19131496,910.31,908.94,0.71236095]
[1768023459956,0.19131496,910.31,908.95,0.71236095]
[1768023460155,0.19131496,910.31,908.96,0.71236095]
[1768023460356,0.19131496,910.31,908.97,0.71236095]
[1768023460556,0.19131496,910.31,908.98,0.71236095]
[1768023460754,0.19131496,910.31,908.99,0.71236095]
[1768023460954,0.19131496,910.31,909.0,0.71236095]
[1768023461153,0.19131496,910.31,909.01,0.71236095]
[1768023461358,0.19131496,910.31,909.02,0.71236095]
[1768023461556,0.19131496,910.31,909.03,0.71236095]
[1768023461856,0.19131496,910.31,909.04,0.71236095]
[1768023462157,0.19131496,910.31,909.05,0.71236095]
[1768023462358,0.19131496,910.31,909.06,0.71236095]
[1768023462556,0.19131496,910.31,909.07,0.71236095]
[1768023462757,0.19131496,910.31,909.08,0.71236095]
[1768023462954,0.19131496,910.31,908.8,1.885]
[1768023463158,0.19131496,910.31,908.81,0.71424314]
[1768023463356,0.19131496,910.31,908.82,0.71424314]
[1768023463559,0.19131496,910.31,908.83,0.71424314]
[1768023463758,0.19131496,910.31,908.84,0.71424314]
[1768023464060,0.19131496,910.31,908.85,0.71424314]
[1768023464258,0.19131496,910.31,908.86,0.71424314]
[1768023464457,0.19131496,910.31,908.87,0.71424314]
[1768023464655,0.19131496,910.31,908.88,0.71424314]
[1768023464860,0.19131496,910.31,908.89,0.71424314]
[1768023465061,0.19131496,910.31,908.9,0.71424314]
[1768023465260,0.19131496,910.31,908.91,0.71424314]
[1768023465556,0.19131496,910.31,908.92,0.71424314]
[1768023465757,0.19131496,910.31,908.93,0.71424314]
[1768023465963,0.19131496,910.31,908.94,0.71424314]
[1768023466162,0.19131496,910.31,908.95,0.71424314]
[1768023466362,0.19131496,910.31,908.96,0.71424314]
[1768023466659,0.19131496,910.31,908.97,0.71424314]
[1768023466859,0.19131496,910.31,908.98,0.71424314]
[1768023467065,0.19131496,910.31,908.99,0.71424314]
[1768023467365,0.19131496,910.31,909.0,0.71424314]
[1768023467563,0.19131496,910.31,909.01,0.71424314]
[1768023467861,0.19131496,910.31,909.02,0.71424314]
[1768023468060,0.19131496,910.31,909.03,0.71424314]
[1768023468264,0.19131496,910.31,909.04,0.71424314]
[1768023468464,0.19131496,910.31,909.05,0.71424314]
[1768023468666,0.19131496,910.31,909.06,0.71424314]
[1768023468865,0.19131496,910.31,909.07,0.71424314]
[1768023469061,0.19131496,910.31,909.08,0.71424314]
[1768023469262,0.19131496,910.31,909.09,0.71424314]
[1768023469462,0.19131496,910.31,909.1,0.71424314]
[1768023469664,0.19131496,910.31,908.81,0.82132031]
[1768023469866,0.19131496,910.31,908.82,0.71625298]
[1768023470066,0.19131496,910.31,908.83,0.71625298]
[1768023470364,0.19131496,910.31,908.84,0.71625298]
[1768023470564,0.19131496,910.31,908.85,0.71625298]
[1768023470764,2.74803267,910.61,908.86,0.71625298]
[1768023470963,2.74803267,910.61,908.87,0.71625298]
[1768023471268,2.74803267,910.61,908.88,0.71625298]
[1768023471465,2.74803267,910.63,908.89,0.71625298]
[1768023471664,2.74803267,910.63,908.9,0.71625298]
[1768023471869,2.74803267,910.63,908.91,0.71625298]
[1768023472165,2.74803267,910.63,908.92,0.71625298]
[1768023472465,2.74803267,910.62,908.93,0.71625298]
[1768023472770,2.74803267,910.62,908.94,0.71625298]
[1768023473064,2.74803267,910.62,908.95,0.71625298]
[1768023473364,2.74803267,910.62,908.96,0.71625298]
[1768023473568,2.74803267,910.62,908.94,1.452]
[1768023473569,2.74803267,910.62,908.97,0.71625298]
[1768023473766,2.74803267,910.62,908.98,0.71625298]
[1768023473966,2.74803267,910.62,908.99,0.71625298]
[1768023474165,2.74803267,910.62,909.0,0.71625298]
[1768023474368,2.74803267,910.62,909.01,0.71625298]
[1768023474567,2.74803267,910.62,909.02,0.71625298]
[1768023474766,2.74803267,910.62,909.03,0.71625298]
[1768023474969,2.74803267,910.62,909.04,0.71625298]
[1768023475172,0.19131181,910.23,909.05,0.71625298]
[1768023475369,0.19131181,910.23,909.06,0.71625298]
[1768023475572,0.19131181,910.23,909.07,0.71625298]
[1768023475771,0.19131181,910.23,909.08,0.71625298]
[1768023476072,0.19131181,910.23,909.09,0.71625298]
[1768023476272,0.19131181,910.23,909.1,0.71625298]
[1768023476473,0.19131181,910.23,909.11,0.71625298]
[1768023476671,0.19131181,910.23,909.12,0.71625298]
[1768023476873,0.19131181,910.23,909.13,0.71625298]
[1768023477074,0.19131181,910.23,908.94,1.452]
[1768023477274,0.19131181,910.23,908.95,0.71648341]
[1768023477475,0.19131181,910.23,908.96,0.71648341]
[1768023477674,0.19131181,910.23,908.94,1.452]
[1768023477675,0.19131181,910.23,908.97,0.71648341]
[1768023477874,0.19131181,910.23,908.98,0.71648341]
[1768023478072,0.19131181,910.23,908.99,0.71648341]
[1768023478377,0.19131181,910.23,909.0,0.71648341]
[1768023478578,0.19131181,910.23,909.01,0.71648341]
[1768023478878,0.19131181,910.23,909.02,0.71648341]
[1768023479177,0.19131181,910.23,909.03,0.71648341]
[1768023479378,0.19131181,910.23,909.04,0.71648341]
[1768023479578,0.19131181,910.23,909.05,0.71648341]
[1768023479777,0.19131181,910.23,909.06,0.71648341]
[1768023479974,0.19131181,910.23,909.07,0.71648341]
[1768023480175,0.19131181,910.23,909.08,0.71648341]
[1768023480379,0.19131181,910.23,909.09,0.71648341]
[1768023480572,0.19131181,910.23,909.1,0.71648341]
[1768023480877,0.19131181,910.23,909.11,0.71648341]
[1768023481178,0.19131181,910.23,909.12,0.71648341]
[1768023481478,0.19131181,910.23,908.94,1.452]
[1768023481679,0.19131181,910.23,908.95,0.71651187]
[1768023481872,0.19131181,910.23,908.96,0.71651187]
[1768023482076,0.19131181,910.23,908.97,0.71651187]
[1768023482277,0.19131181,910.23,908.98,0.71651187]
[1768023482474,0.19131181,910.23,908.99,0.71651187]
[1768023482772,0.19131181,910.23,909.0,0.71651187]
[1768023482973,0.19131181,910.23,909.01,0.71651187]
[1768023483277,0.19131181,910.23,909.02,0.71651187]
[1768023483477,0.19131181,910.23,909.03,0.71651187]
[1768023483674,0.19131181,910.23,909.04,0.71651187]
[1768023483875,0.19131181,910.23,909.05,0.71651187]
[1768023484075,0.19131181,910.23,909.06,0.71651187]
[1768023484274,0.19131181,910.23,909.07,0.71651187]
[1768023484574,0.19131181,910.23,909.08,0.71651187]
[1768023484795,0.19131181,910.23,908.94,1.452]
[1768023485077,0.19131181,910.23,908.95,0.71657718]
[1768023485273,0.19131181,910.23,908.96,0.71657718]
[1768023485575,0.19131181,910.23,908.97,0.71657718]
[1768023485775,0.19131181,910.23,908.98,0.71657718]
[1768023485973,0.19131181,910.23,908.99,0.71657718]
[1768023486177,0.19131181,910.23,909.0,0.71657718]
[1768023486376,0.19131181,910.23,909.01,0.71657718]
[1768023486578,0.19131181,910.23,909.02,0.71657718]
[1768023486878,0.19131181,910.23,909.03,0.71657718]
[1768023487076,0.19131181,910.23,909.04,0.71657718]
[1768023487276,0.19131181,910.23,909.05,0.71657718]
[1768023487475,0.19131181,910.23,909.06,0.71657718]
[1768023487775,0.19131181,910.23,909.07,0.71657718]
[1768023488073,0.19131181,910.23,909.08,0.71657718]
[1768023488277,0.19131181,910.23,908.94,1.452]
[1768023488477,0.19131181,910.23,908.95,0.71659341]
[1768023488676,0.19131181,910.23,908.96,0.71659341]
[1768023488877,0.19131181,910.23,908.97,0.71659341]
[1768023489076,0.19131181,910.23,908.98,0.71659341]
[1768023489276,0.19131181,910.23,908.99,0.71659341]
[1768023489579,0.19131181,910.23,909.0,0.71659341]
[1768023489779,0.19131181,910.23,909.01,0.71659341]
[1768023489979,0.19131181,910.23,909.02,0.71659341]
[1768023490275,0.19131181,910.23,909.03,0.71659341]
[1768023490475,0.19131181,910.23,909.04,0.71659341]
[1768023490675,0.19131181,910.23,909.05,0.71659341]
[1768023490877,0.19131181,910.23,909.06,0.71659341]
[1768023491175,0.19131181,910.23,909.07,0.71659341]
[1768023491376,0.19131181,910.23,909.08,0.71659341]
[1768023491575,0.19131181,910.23,909.09,0.71659341]
[1768023491775,0.19131181,910.23,909.1,0.71659341]
[1768023491977,0.19131181,910.23,909.11,0.71659341]
[1768023492177,0.19131181,910.23,909.12,0.71659341]
[1768023492382,0.19131181,910.23,909.13,0.71659341]
[1768023492681,0.19131181,910.23,909.14,0.71659341]
[1768023492881,0.19131181,910.23,908.94,1.452]
[1768023493077,0.19131181,910.23,908.95,0.71676947]
[1768023493280,0.19131181,910.23,908.96,0.71676947]
[1768023493481,0.19131181,910.23,908.97,0.71676947]
[1768023493680,0.19131181,910.23,908.98,0.71676947]
[1768023493879,0.19131181,910.23,908.99,0.71676947]
[1768023494184,0.19131181,910.23,909.0,0.71676947]
[1768023494478,0.19131181,910.23,909.01,0.71676947]
[1768023494680,0.19131181,910.23,909.02,0.71676947]
[1768023494882,0.19131181,910.23,909.03,0.71676947]
[1768023495084,0.19131181,910.23,909.04,0.71676947]
[1768023495284,0.19131181,910.23,909.05,0.71676947]
[1768023495583,0.19131181,910.23,909.06,0.71676947]
[1768023495781,0.19131181,910.23,909.07,0.71676947]
[1768023495981,0.19131181,910.23,909.08,0.71676947]
[1768023496286,0.19131181,910.23,909.09,0.71676947]
[1768023496480,0.19131181,910.23,909.1,0.71676947]
[1768023496682,0.19131181,910.23,909.11,0.71676947]
[1768023496881,0.19131181,910.23,909.12,0.71676947]
[1768023497086,0.19131181,910.23,909.13,0.71676947]
[1768023497286,0.19131181,910.23,909.14,0.71676947]
[1768023497486,0.19131181,910.23,908.94,1.452]
[1768023497686,0.19131181,910.23,908.95,0.71706407]
[1768023497883,0.19131181,910.23,908.96,0.71706407]
[1768023498087,0.19131181,910.23,908.97,0.71706407]
[1768023498287,0.19131181,910.23,908.98,0.71706407]
[1768023498486,0.19131181,910.23,908.99,0.71706407]
[1768023498685,0.19131181,910.23,909.0,0.71706407]
[1768023498984,0.19131181,910.23,909.01,0.71706407]
[1768023499185,0.19131181,910.23,909.02,0.71706407]
[1768023499384,0.19131181,910.23,909.03,0.71706407]
[1768023499683,0.19131181,910.23,909.04,0.71706407]
[1768023499888,0.19131181,910.23,909.05,0.71706407]
[1768023500188,0.19131181,910.23,909.06,0.71706407]
[1768023500388,0.19131181,910.23,909.07,0.71706407]
[1768023500689,0.19131181,910.23,909.08,0.71706407]
[1768023500888,0.19131181,910.23,909.09,0.71706407]
[1768023501085,0.19131181,910.23,909.1,0.71706407]
[1768023501383,0.19131181,910.23,909.11,0.71706407]
[1768023501588,0.19131181,910.23,909.12,0.71706407]
[1768023501883,0.19131181,910.23,909.13,0.71706407]
[1768023502084,0.19131181,910.23,909.14,0.71706407]
[1768023502284,0.19131181,910.23,909.15,0.71706407]
[1768023502485,0.19131181,910.23,909.16,0.71706407]
[1768023502688,0.19131181,910.23,909.17,0.71706407]
[1768023502886,0.19131181,910.23,909.18,0.71706407]
[1768023503184,0.19131181,910.23,909.19,0.71706407]
[1768023503384,0.19131181,910.23,909.2,0.71706407]
[1768023503584,0.19131181,910.23,909.21,0.71706407]
[1768023503786,0.19131181,910.23,909.22,0.71706407]
[1768023503982,0.19131181,910.23,909.23,0.71706407]
[1768023504188,0.19131181,910.23,909.24,0.71706407]
[1768023504487,0.19131181,910.23,909.25,0.71706407]
[1768023504683,0.19131181,910.23,909.26,0.71706407]
[1768023504886,0.19131181,910.23,909.27,0.71706407]
[1768023505084,0.19131181,910.23,909.28,0.71706407]
[1768023505384,0.19131181,910.23,909.29,0.71706407]
[1768023505688,0.19131181,910.23,909.3,0.71706407]
[1768023505884,0.19131181,910.23,909.31,0.71706407]
[1768023506088,0.19131181,910.23,909.32,0.71706407]
[1768023506285,0.19131181,910.23,909.33,0.71706407]
[1768023506486,0.19131181,910.23,909.34,0.71706407]
[1768023506684,0.19131181,910.23,909.35,0.71706407]
[1768023506888,0.19131181,910.23,909.08,0.82132031]
[1768023506889,0.19131181,910.23,909.36,0.71706407]
[1768023507089,0.19131181,910.23,909.37,0.71706407]
[1768023507290,0.19131181,910.23,909.38,0.71706407]
[1768023507487,0.19131181,910.23,909.39,0.71706407]
[1768023507686,0.19131181,910.23,909.4,0.71706407]
[1768023507990,2.74803267,911.37,909.41,0.71706407]
[1768023508186,2.74803267,911.51,909.45,0.82132031]
[1768023508386,0.19115103,910.62,909.49,0.82132031]
[1768023508587,2.74803267,911.61,909.5,0.71706407]
[1768023508792,0.19113055,910.62,909.51,0.71706407]
[1768023508990,0.19113055,910.62,909.52,0.71706407]
[1768023509286,0.1911379,910.51,909.53,0.71706407]
[1768023509487,0.1911379,910.51,909.54,0.71706407]
[1768023509688,0.1911379,910.51,909.55,0.71706407]
[1768023509891,0.1911379,910.51,909.56,0.71706407]
[1768023510090,0.1911379,910.51,909.57,0.71706407]
[1768023510289,0.1911379,910.51,909.58,0.71706407]
[1768023510488,0.1911379,910.51,909.59,0.71706407]
[1768023510791,0.1911379,910.51,909.6,0.71706407]
[1768023510991,0.1911379,910.51,909.41,0.82132031]
[1768023510992,0.1911379,910.51,909.61,0.71706407]
[1768023511189,2.74803267,911.75,909.62,0.71706407]
[1768023511392,2.74803267,911.84,909.63,0.71706407]
[1768023511593,0.19111166,910.67,909.64,0.71706407]
[1768023511892,0.19111166,910.67,909.07,1.311]
[1768023511893,2.74803267,911.86,909.65,0.71706407]
[1768023512089,0.19110536,910.67,909.66,0.71706407]
[1768023512294,2.74803267,911.86,909.67,0.71706407]
[1768023512493,2.74803267,911.92,909.68,0.71706407]
[1768023512690,0.19110326,910.67,909.69,0.71706407]
[1768023512994,2.74803267,911.92,909.7,0.71706407]
[1768023513191,0.19109907,911.37,909.71,0.71706407]
[1768023513493,0.19109907,911.37,909.72,0.71706407]
[1768023513691,0.19109907,911.37,909.73,0.71706407]
[1768023513894,0.19109907,911.37,909.74,0.71706407]
[1768023514191,0.19109907,911.37,909.45,0.82132031]
[1768023514390,0.19109907,911.37,909.46,0.70825773]
[1768023514590,0.19109907,911.37,909.47,0.70825773]
[1768023514894,0.19109907,911.37,909.48,0.70825773]
[1768023515194,0.19109907,911.37,909.49,0.70825773]
[1768023515391,0.19109907,911.37,909.5,0.70825773]
[1768023515693,0.19109907,911.37,909.51,0.70825773]
[1768023515895,0.19109907,911.37,909.52,0.70825773]
[1768023516092,0.19109907,911.37,909.53,0.70825773]
[1768023516296,0.19109907,911.37,909.54,0.70825773]
[1768023516597,0.19109907,911.37,909.55,0.70825773]
[1768023516798,0.19109907,911.37,909.56,0.70825773]
[1768023517097,0.19109907,911.37,909.57,0.70825773]
[1768023517298,0.19109907,911.37,909.58,0.70825773]
[1768023517499,0.19109907,911.37,909.59,0.70825773]
[1768023517700,0.19109907,911.37,909.6,0.70825773]
[1768023517900,0.19109907,911.37,909.61,0.70825773]
[1768023518100,0.19109907,911.37,909.62,0.70825773]
[1768023518296,0.19109907,911.37,909.63,0.70825773]
[1768023518500,0.19109907,911.37,909.64,0.70825773]
[1768023518802,0.19109907,911.37,909.65,0.70825773]
[1768023519103,0.19109907,911.37,909.66,0.70825773]
[1768023519303,0.19109907,911.37,909.67,0.70825773]
[1768023519502,0.19109907,911.37,909.68,0.70825773]
[1768023519702,0.19109907,911.37,909.69,0.70825773]
[1768023519901,0.19109907,911.37,909.7,0.70825773]
[1768023520201,0.19109907,911.37,909.71,0.70825773]
[1768023520498,0.19109907,911.37,909.42,0.82132031]
[1768023520700,0.19109907,911.37,909.43,0.70579434]
[1768023520901,0.19109907,911.37,909.44,0.70579434]
[1768023521101,0.19109907,911.37,909.45,0.70579434]
[1768023521302,0.19109907,911.37,909.46,0.70579434]
[1768023521501,0.19109907,911.37,909.47,0.70579434]
[1768023521697,0.19109907,911.37,909.48,0.70579434]
[1768023521902,0.19109907,911.37,909.49,0.70579434]
[1768023522102,0.19109907,911.37,909.5,0.70579434]
[1768023522303,0.19109907,911.37,909.51,0.70579434]
[1768023522500,0.19109907,911.37,909.52,0.70579434]
[1768023522703,0.19109907,911.37,909.53,0.70579434]
[1768023522900,0.19109907,911.37,909.54,0.70579434]
[1768023523098,0.19109907,911.37,909.55,0.70579434]
[1768023523300,0.19109907,911.37,909.56,0.70579434]
[1768023523503,0.19109907,911.37,909.57,0.70579434]
[1768023523700,0.19109907,911.37,909.58,0.70579434]
[1768023524002,0.19109907,911.37,909.59,0.70579434]
[1768023524301,0.19109907,911.37,909.6,0.70579434]
[1768023524505,0.19109907,911.37,909.61,0.70579434]
[1768023524704,0.19109907,911.37,909.62,0.70579434]
[1768023525004,0.19109907,911.37,909.63,0.70579434]
[1768023525304,0.19109907,911.37,909.64,0.70579434]
[1768023525505,0.19109907,911.37,909.65,0.70579434]
[1768023525706,0.19109907,911.37,909.66,0.70579434]
[1768023526006,0.19109907,911.37,909.67,0.70579434]
[1768023526301,0.19109907,911.37,909.68,0.70579434]
[1768023526501,0.19109907,911.37,909.69,0.70579434]
[1768023526705,0.19109907,911.37,909.7,0.70579434]
[1768023526906,0.19109907,911.37,909.41,0.82132031]
[1768023527202,0.19109907,911.37,909.42,0.70539647]
[1768023527402,0.19109907,911.37,909.43,0.70539647]
[1768023527606,0.19109907,911.37,909.44,0.70539647]
[1768023527802,0.19109907,911.37,909.45,0.70539647]
[1768023528005,0.19109907,911.37,909.46,0.70539647]
[1768023528203,0.19109907,911.37,909.47,0.70539647]
[1768023528404,0.19109907,911.37,909.6,0.82132031]
[1768023528609,0.19109907,911.37,909.61,0.70539647]
[1768023528810,0.19109907,911.37,909.62,0.70539647]
[1768023529009,0.19109907,911.37,909.63,0.70539647]
[1768023529210,0.19109907,911.37,909.64,0.70539647]
[1768023529410,0.19109907,911.37,909.65,0.70539647]
[1768023529607,0.19109907,911.37,909.66,0.70539647]
[1768023529906,0.19109907,911.37,909.67,0.70539647]
[1768023530211,0.19109907,911.37,909.68,0.70539647]
[1768023530508,0.19109907,911.37,909.69,0.70539647]
[1768023530710,0.19109907,911.37,909.7,0.70539647]
[1768023530910,0.19109907,911.37,909.71,0.70539647]
[1768023531206,0.19109907,911.37,909.72,0.70539647]
[1768023531512,0.19109907,911.37,909.73,0.70539647]
[1768023531707,0.19109907,911.37,909.74,0.70539647]
[1768023531910,0.19109907,911.37,909.75,0.70539647]
[1768023532111,0.19109907,911.37,909.76,0.70539647]
[1768023532307,0.19109907,911.37,909.77,0.70539647]
[1768023532512,0.19109907,911.37,909.78,0.70539647]
[1768023532708,0.19109907,911.37,909.79,0.70539647]
[1768023532912,0.19109907,911.37,909.8,0.70539647]
[1768023533113,0.19109907,911.37,909.81,0.70539647]
[1768023533414,0.19109907,911.37,909.82,0.70539647]
[1768023533612,0.19109907,911.37,909.83,0.70539647]
[1768023533813,0.19109907,911.37,909.84,0.70539647]
[1768023534013,0.19109907,911.37,909.85,0.70539647]
[1768023534215,0.19109907,911.37,909.86,0.70539647]